[Event "GER-ch Youth-U18 2022"]
[Site "Willingen"]
[Date "2022.06.08"]
[Round "6.2"]
[White "Koelle, Tobias"]
[Black "Weishaeutel, Moritz"]
[Result "1-0"]
[ECO "A58"]
[WhiteElo "2431"]
[BlackElo "2406"]
[Annotator "TA"]
[PlyCount "79"]
[EventDate "2022.06.05"]
[EventType "swiss"]
[EventRounds "9"]
[EventCountry "GER"]
[SourceTitle "playchess.com"]
[Source "ChessBase"]
[SourceQuality "1"]
[TimeControl "40/4500+30:900+30"]

{[%evp 9,79,31,41,50,60,45,61,47,48,30,66,47,77,34,41,41,40,35,38,44,37,37,50,39,37,35,55,56,40,53,55,43,75,66,122,116,142,135,138,150,367,341,425,416,1120,1058,1032,770,4710,748,748,748,748,748,739,733,727,0,204,0,723,230,237,230,697,660,29981,1416,29982,29983,29981,29980]} 1. d4 {[%emt 0:00:00]} Nf6 {[%emt 0:00:00]} 2. c4 {[%emt 0:00:00][%cal Bc2c4,Bc4b5][%mdl 32]} c5 {[%emt 0:00:00]} 3. d5 {[%emt 0:00:00]} b5 {[%emt 0:00:00]} 4. cxb5 {[%emt 0:00:00]} a6 {[%emt 0:00:00]} 5. bxa6 {[%emt 0:00:00]} g6 {[%emt 0:00:00]} 6. Nc3 {[%emt 0:00:00] A58: Benko/Volga Gambit: Lines with 5 bxa6.} Bg7 {[%emt 0:00:00]} 7. e4 {[%emt 0:00:00] [#] Black must now prevent e5.} O-O {[%emt 0:00:00]} 8. a7 {[%emt 0:00:00] White is slightly better.} Rxa7 {[%emt 0:00:00]} 9. a4 {[%emt 0:00:00] [#]} d6 $146 {[%emt 0:00:00]} ({Predecessor:} 9... Qa5 10. Bd2 Qb6 11. Qc2 Na6 12. Nb5 Ra8 13. Bc4 Nb4 14. Qb1 e6 15. dxe6 fxe6 {0-1 (62) Tarasova,V (2226)-Herrera Reyes,J (2304) Chess.com INT 2021}) 10. Bb5 {[%emt 0:00:00]} e6 {[%emt 0:00:00]} 11. Nge2 {[%emt 0:00:00]} exd5 {[%emt 0:00:00]} 12. exd5 {[%emt 0:00:00]} ({Reject} 12. Nxd5 Nxe4 13. O-O Bb7 $11) 12... Na6 {[%emt 0:00:00]} 13. O-O {[%emt 0:00:00]} Nb4 {[%emt 0:00:00]} 14. h3 {[%emt 0:03:51]} Bb7 {[%emt 0:05:21][%cal Rf6d5]} 15. Bc4 {[%emt 0:00:53]} Ba6 {[%emt 0:00:10]} 16. Bxa6 {[%emt 0:03:04]} Rxa6 {[%emt 0:00:09]} 17. Bg5 {[%emt 0:26:28]} Qa8 {[%emt 0:08:15][%cal Rf6d5]} 18. Bxf6 {[%emt 0:00:57]} Bxf6 {[%emt 0:00:05]} 19. Qd2 {[%emt 0:00:21]} Re8 {[%emt 0:07:49]} 20. Rad1 {[%emt 0:02:14]} Re5 {[%emt 0:19:28]} 21. Ng3 {[%emt 0:13:41]} Re7 {[%emt 0:07:44]} (21... Bg7 $14) 22. Rfe1 $16 {[%emt 0:06:31]} Rxe1+ {[%emt 0:08:12]} 23. Rxe1 {[%emt 0:00:34]} Ra7 {[%emt 0:02:25]} 24. Nge4 {[%emt 0:03:08][%csl LRd6,LRf6]} Be5 {[%emt 0:02:43] [#]} (24... Be7 $16 25. g4 Qf8) 25. Nxc5 $1 $18 {[%emt 0:11:32][%cal Oe1e5][%mdl 512] Hoping for Rxe5!} Bxc3 {[%emt 0:03:12]} (25... Re7 26. N5e4) 26. bxc3 {[%emt 0:01:06]} dxc5 {[%emt 0:00:40]} (26... Nc2 $142) 27. cxb4 {[%emt 0:00:04]} cxb4 {[%emt 0:00:06][%mdl 4096] Endgame KQR-KQR} 28. d6 {[%emt 0:01:37] White wants to mate with d7.} Qc6 {[%emt 0:00:38]} 29. Rd1 {[%emt 0:06:42]} (29. Re7 $142 Rxe7 30. dxe7) 29... Qd7 {[%emt 0:03:20]} 30. Qxb4 {[%emt 0:00:53] Strongly threatening Qb8+.} Rxa4 {[%emt 0:00:04]} 31. Qb8+ {[%emt 0:00:33]} Kg7 {[%emt 0:00:01]} 32. Qb2+ {[%emt 0:00:06]} Kg8 {[%emt 0:00:17]} 33. Qb8+ $2 {[%emt 0:00:10]} (33. Re1) 33... Kg7 {[%emt 0:00:01]} 34. Qb2+ $2 {[%emt 0:00:06]} (34. Qb3) 34... Kg8 $1 {[%emt 0:00:09]} 35. Qe5 {[%emt 0:00:31] Prevents Re4.} (35. Re1) 35... Ra8 {[%emt 0:00:57]} 36. Re1 {[%emt 0:01:54]} Rd8 $2 {[%emt 0:03:40]} (36... Qe6 37. Qxe6 fxe6 38. Rxe6 Rd8) 37. Qf6 {[%emt 0:00:16]} ({Less strong is} 37. Rd1 Qe6 38. f4 Qf5 $18) 37... Re8 {[%emt 0:00:08]} 38. Rxe8+ {[%emt 0:01:28]} Qxe8 {[%emt 0:00:01]} 39. Qe7 {[%emt 0:00:06]} Qc6 {[%emt 0:00:39]} 40. Qc7 {[%emt 0:00:11] Weighted Error Value: White=0.57/Black=0.66} ({Inferior is} 40. d7 Qc1+ 41. Kh2 Qf4+ 42. g3 Qxf2+ 43. Kh1 Qf1+ 44. Kh2 Qf2+ 45. Kh1 Qf1+ 46. Kh2 Qf2+ $11) 1-0

[Event "GER-ch Youth-U18 2022"]
[Site "Willingen"]
[Date "2022.06.08"]
[Round "6.3"]
[White "Pubantz, Jan"]
[Black "von Mettenheim, Johannes"]
[Result "1-0"]
[ECO "E36"]
[WhiteElo "2265"]
[BlackElo "2176"]
[Annotator "TA"]
[PlyCount "89"]
[EventDate "2022.06.05"]
[EventType "swiss"]
[EventRounds "9"]
[EventCountry "GER"]
[SourceTitle "playchess.com"]
[Source "ChessBase"]
[SourceQuality "1"]
[TimeControl "40/4500+30:900+30"]

{[%evp 12,89,17,14,17,8,39,36,36,38,124,114,154,166,163,153,299,87,88,87,129,127,142,138,161,156,152,158,151,154,170,174,187,185,168,142,204,200,232,231,233,225,231,215,218,193,195,188,188,194,187,181,227,143,156,0,217,218,236,235,236,221,231,218,206,196,190,183,524,526,496,488,686,222,687,657,989,974,745,678]} 1. d4 {[%emt 0:00:00]} Nf6 {[%emt 0:00:00]} 2. c4 {[%emt 0:00:00]} e6 {[%emt 0:00:00]} 3. Nc3 {[%emt 0:00:00]} Bb4 {[%emt 0:00:00]} 4. Qc2 {[%emt 0:00:00]} d5 {[%emt 0:00:00]} 5. a3 {[%emt 0:00:00]} Bxc3+ {[%emt 0:00:00]} 6. Qxc3 {[%emt 0:00:00]} dxc4 {[%emt 0:00:00]} 7. Qxc4 {[%emt 0:00:00]} b6 {[%emt 0:00:00] E36: Nimzo-Indian: Classical: 4...d5 5 a3.} 8. Bf4 {[%emt 0:00:00]} Ba6 {[%emt 0:00:00]} 9. Qxc7 {[%emt 0:00:00]} Qd5 {[%emt 0:00:00] White is slightly better.} 10. Qd6 {[%emt 0:00:00] [#]} ({Not} 10. Bd6 $2 Nc6 11. Bb4 Rc8 $19) 10... Qf5 $146 {[%emt 0:00:00]} (10... Nc6 $14) ({Predecessor:} 10... Qa5+ 11. Qb4 Nc6 12. Qxa5 Nxa5 13. O-O-O Bb5 14. e3 Rc8+ {1-0 (26) Niemann,H (2637)-Mareco,S (2652) Havana 2022}) 11. f3 $16 {[%emt 0:02:29]} Qb5 {[%emt 0:00:00]} 12. Rc1 {[%emt 0:05:21] Against Nc6} Nd5 {[%emt 0:15:33]} 13. Bg5 {[%emt 0:14:14][%csl Gg5][%cal Rd6d8]} Nd7 {[%emt 0:03:10]} (13... Qd7 $16 14. Qxd7+ Kxd7) 14. Qc6 $2 {[%emt 0:07:33]} (14. Nh3 $1 $18 {and the rest is easy. Hoping for e4.} h6 15. b4) 14... Qxc6 {[%emt 0:00:13]} 15. Rxc6 {[%emt 0:00:01]} Bb5 {[%emt 0:00:41]} 16. Rc1 {[%emt 0:00:54]} f5 {[%emt 0:00:53]} 17. Nh3 $36 {[%emt 0:03:59][%mdl 2048] White has strong initiative.} O-O {[%emt 0:04:24]} 18. e4 {[%emt 0:07:13]} Bxf1 {[%emt 0:00:05]} 19. Rxf1 {[%emt 0:00:10]} N5f6 {[%emt 0:00:33]} 20. Nf2 {[%emt 0:03:06]} Rfd8 {[%emt 0:08:54]} 21. Ke2 {[%emt 0:03:46]} h6 {[%emt 0:02:22]} 22. Bxf6 {[%emt 0:03:02]} Nxf6 {[%emt 0:00:06]} 23. Rfd1 {[%emt 0:01:48]} Rd7 {[%emt 0:00:20]} (23... Rac8 $16 {was worth a try.}) 24. Rc6 $18 {[%emt 0:03:31]} fxe4 {[%emt 0:04:55]} 25. fxe4 {[%emt 0:02:18]} (25. Nxe4 $6 Kf7 $16) 25... Rad8 {[%emt 0:01:04] [#]} 26. Ke3 {[%emt 0:03:26]} ({Don't play} 26. Rxe6 $6 Rxd4 27. Rxd4 Rxd4 $16) 26... Kf7 {[%emt 0:00:06]} 27. h3 {[%emt 0:00:33]} Ke7 {[%emt 0:00:27]} 28. Rc4 {[%emt 0:01:55]} Ne8 {[%emt 0:01:13]} 29. Ng4 {[%emt 0:03:04] aiming for Ne5.} Nd6 {[%emt 0:00:46]} 30. Rc2 {[%emt 0:01:13]} Nf7 {[%emt 0:00:50]} 31. Nh2 {[%emt 0:04:59]} g5 {[%emt 0:03:47]} (31... Nd6 {keeps fighting.} 32. Nf3 Rc8 33. Rxc8 Nxc8) 32. Rcd2 {[%emt 0:05:00]} Nd6 {[%emt 0:10:47] [#]} 33. Rc2 {[%emt 0:00:55] Prevents Nc4+.} (33. Rc1 $1 $16) 33... Nf7 $1 {[%emt 0:00:30]} 34. Nf3 {[%emt 0:01:58] Against Ne5} Rg8 {[%emt 0:00:18]} 35. g4 {[%emt 0:02:03]} h5 {[%emt 0:00:51]} 36. Rg1 {[%emt 0:05:44]} ({Don't do} 36. gxh5 Rh8 37. Kf2 Rxh5) 36... Rh8 {[%emt 0:00:17]} 37. h4 {[%emt 0:01:03]} hxg4 {[%emt 0:01:34]} 38. Rxg4 {[%emt 0:00:11]} gxh4 {[%emt 0:00:28]} 39. Nxh4 {[%emt 0:00:41] And now Ng6+ would win.} Rhd8 $2 {[%emt 0:00:42]} (39... Kd8 {is more resistant.} 40. Nf3 Re7) 40. Ng6+ {[%emt 0:01:49]} Ke8 {[%emt 0:00:15]} 41. Nf4 {[%emt 0:00:00] Black must now prevent Rg8+.} e5 {[%emt 0:00:00]} (41... Re7 $142 42. Nh5 Kf8) 42. Rg8+ {[%emt 0:02:02]} Ke7 {[%emt 0:00:00]} 43. Ng6+ {[%emt 0:00:31] White is clearly winning.} Kd6 {[%emt 0:01:26]} 44. dxe5+ {[%emt 0:00:54]} Nxe5 {[%emt 0:00:13]} 45. Rxd8 {[%emt 0:00:16] Weighted Error Value: White=0.16 (very precise) /Black=0.29 (precise)} 1-0

[Event "GER-ch Youth-U18 2022"]
[Site "Willingen"]
[Date "2022.06.08"]
[Round "6.4"]
[White "Dobrikov, Marco"]
[Black "Weidemann, Jakob"]
[Result "1/2-1/2"]
[ECO "B76"]
[WhiteElo "2234"]
[BlackElo "2047"]
[Annotator "TA"]
[PlyCount "100"]
[EventDate "2022.06.05"]
[EventType "swiss"]
[EventRounds "9"]
[EventCountry "GER"]
[SourceTitle "playchess.com"]
[Source "ChessBase"]
[SourceQuality "1"]
[TimeControl "40/4500+30:900+30"]

{[%evp 22,100,21,18,28,6,4,10,31,0,128,123,141,135,148,149,140,148,143,134,142,-68,-87,-229,-202,-863,-8,-8,-8,-428,-16,-9,-6,-6,0,0,0,0,0,0,8,8,8,8,8,8,8,8,8,0,209,222,409,0,0,0,0,0,0,0,0,0,0,-8,-8,-8,-8,-8,0,0,0,0,0,-8,-8,-17,-17,-17,-18,-33,70]} 1. e4 {[%emt 0:00:00]} c5 {[%emt 0:00:00]} 2. Nf3 {[%emt 0:00:00]} d6 {[%emt 0:00:00]} 3. d4 {[%emt 0:00:00]} cxd4 {[%emt 0:00:00]} 4. Nxd4 {[%emt 0:00:00]} Nf6 {[%emt 0:00:00]} 5. Nc3 {[%emt 0:00:00]} g6 {[%emt 0:00:00]} 6. Be3 {[%emt 0:00:00]} Bg7 {[%emt 0:00:00]} 7. f3 {[%emt 0:00:00]} O-O {[%emt 0:00:00]} 8. Qd2 {[%emt 0:00:00]} Nc6 {[%emt 0:00:00]} 9. g4 {[%emt 0:00:00]} Be6 {[%emt 0:00:00]} 10. Nxe6 {[%emt 0:00:00]} fxe6 {[%emt 0:00:00]} 11. O-O-O {[%emt 0:00:00]} Ne5 {[%emt 0:00:00]} 12. Be2 {[%emt 0:00:00] Hoping for g5.} Qc8 {[%emt 0:00:00] B76: Sicilian Dragon: Yugoslav Attack, 9 g4 and 9 0-0-0.} 13. Bd4 {[%emt 0:00:00]} Nc6 $1 {[%emt 0:00:00]} 14. Bg1 {[%emt 0:00:00] Threatening h4.} Nd7 {[%emt 0:06:36] [#] The position is equal.} 15. h4 $146 {[%emt 0:00:00]} ({Predecessor:} 15. Rf1 Nce5 16. Bd4 Nc4 17. Bxc4 Qxc4 18. Bxg7 Kxg7 19. Kb1 Ne5 20. f4 Nxg4 21. f5 exf5 22. exf5 gxf5 23. Qg5+ Kh8 24. Qxe7 f4 25. Qxd6 Rad8 {½-½ (25) Strengell,O (2448)-Soederberg,K (2285) ICCF email 2009}) 15... b5 {[%emt 0:17:47]} (15... Nce5 $1 $11 {remains equal.}) 16. h5 $16 {[%emt 0:13:29]} b4 {[%emt 0:00:29]} 17. Nb5 {[%emt 0:00:19]} Nce5 {[%emt 0:16:37]} 18. Nd4 {[%emt 0:05:46]} (18. Nxa7 Qb7 19. hxg6 Rxa7 20. gxh7+ (20. Bxa7 Qxa7 21. gxh7+ Kh8 $17) 20... Kh8 21. Bxa7 Qxa7 22. Qxb4 Nxf3 23. Bxf3 Qe3+ 24. Qd2 Qxf3 $17) 18... Nc4 {[%emt 0:06:33]} 19. Qxb4 {[%emt 0:01:55]} Nde5 {[%emt 0:00:34]} 20. hxg6 {[%emt 0:06:44]} Rb8 {[%emt 0:04:38]} 21. gxh7+ $2 {[%emt 0:00:04]} ({White must play} 21. Qc3 $1 $16 Nxb2 22. Qxc8 (22. gxh7+ Kh8 $16) 22... Rfxc8 23. gxh7+ Kh8 24. Nxe6 $1) 21... Kh8 $15 {[%emt 0:00:10]} 22. Qc3 {[%emt 0:00:27]} (22. Nb5 $17 Nxb2 23. Rd2 (23. Qxb2 Nd3+ 24. Bxd3 Bxb2+ 25. Kxb2 Qc6 $17) (23. Bxa7 $2 Nxd1 24. Bd4 Rxf3 $19)) 22... Rxb2 $19 {[%emt 0:01:24]} 23. Nb3 $2 {[%emt 0:02:18] [#]} (23. a4 d5 24. Rh5) 23... Rxa2 $2 {[%emt 0:06:37]} (23... Rb1+ $3 $19 {[%mdl 512]} 24. Kxb1 Na3+ 25. Kb2 Nec4+ 26. Bxc4 Nxc4+ 27. Kc1 Bxc3) 24. Bd4 $36 {[%emt 0:02:12][%mdl 2048] White is more active.} Na3 {[%emt 0:02:01]} 25. Rd2 {[%emt 0:02:00][%mdl 8192]} (25. Qxc8 $1 $11 {and White is okay.} Rxc8 26. Rd2) 25... Qxc3 $2 {[%emt 0:02:05]} (25... Qb7 $19 {...Rc8 is the strong threat.} 26. Qe3 (26. Kd1 $2 Rc8 $19) 26... Rc8) 26. Bxc3 {[%emt 0:00:02]} Rc8 {[%emt 0:00:51]} 27. Bd4 {[%emt 0:05:19]} Raxc2+ {[%emt 0:03:10]} 28. Rxc2 {[%emt 0:00:02] The board is on fire.} Nxc2 {[%emt 0:00:21] Pair of Knights!} 29. Kb1 $1 {[%emt 0:03:35]} Nxd4 {[%emt 0:06:22]} 30. Nxd4 {[%emt 0:00:01]} Rb8+ {[%emt 0:00:47]} 31. Kc1 {[%emt 0:04:37]} Rc8+ {[%emt 0:02:48]} 32. Kd2 {[%emt 0:02:29]} Nxg4 $1 {[%emt 0:00:36] And now ...Nf2 would win.} 33. Nxe6 {[%emt 0:02:42]} Bc3+ {[%emt 0:00:12]} 34. Kc2 {[%emt 0:00:02]} Bf6+ {[%emt 0:00:30]} 35. Kb3 {[%emt 0:01:04]} Rc3+ $2 {[%emt 0:03:14]} (35... Rb8+ $11 {and Black has nothing to worry.} 36. Ka3 Ne5) 36. Kb4 $18 {[%emt 0:00:43]} Re3 $2 {[%emt 0:01:49]} (36... Ne3 37. Nf4 Nc2+ 38. Kb5 Rc5+ 39. Ka6 Nb4+ 40. Kb7 Rg5) 37. Nf8 $2 {[%emt 0:12:03]} Ne5 $11 {[%emt 0:00:28]} 38. Rh2 {[%emt 0:04:13]} Bg7 {[%emt 0:01:23]} 39. Ne6 {[%emt 0:00:01]} Bf6 {[%emt 0:00:35]} ({Don't take} 39... Nxf3 40. Bxf3 Bc3+ 41. Kc4 Rxf3 42. Ng5 $14) 40. Nf4 {[%emt 0:03:06]} Bg5 {[%emt 0:02:40]} 41. Ne6 {[%emt 0:18:59]} Bf6 {[%emt 0:15:08]} 42. Bd1 {[%emt 0:07:15]} Nxf3 {[%emt 0:02:37]} 43. Bxf3 {[%emt 0:02:27]} Rxf3 {[%emt 0:00:11][%mdl 4096] Endgame KRB-KRN} 44. Kb5 {[%emt 0:00:35]} Rg3 {[%emt 0:02:02]} 45. Rh6 {[%emt 0:00:00]} Bg7 {[%emt 0:00:00]} 46. Rh5 {[%emt 0:00:00]} Rg6 {[%emt 0:00:00]} 47. Nf4 {[%emt 0:00:00][%cal Rf4g6]} Rf6 {[%emt 0:00:00]} 48. Rh4 {[%emt 0:00:00]} Bh6 {[%emt 0:00:00]} 49. Nd5 {[%emt 0:00:00][%csl LRe7,LRf6]} Re6 {[%emt 0:00:00]} 50. Kc6 {[%emt 0:00:00]} Kxh7 {Weighted Error Value: White=0.60/Black=0.57} ({Better is} 50... Bg5 $15 51. Rh5 Re5) 1/2-1/2

[Event "GER-ch Youth-U18 2022"]
[Site "Willingen"]
[Date "2022.06.08"]
[Round "6.5"]
[White "Hinrichs, Paul"]
[Black "Zackrisson, Peter"]
[Result "1/2-1/2"]
[ECO "E73"]
[WhiteElo "2244"]
[BlackElo "2015"]
[Annotator "TA"]
[PlyCount "89"]
[EventDate "2022.06.05"]
[EventType "swiss"]
[EventRounds "9"]
[EventCountry "GER"]
[SourceTitle "playchess.com"]
[Source "ChessBase"]
[SourceQuality "1"]
[TimeControl "40/4500+30:900+30"]

{[%evp 11,89,33,21,14,28,15,15,20,29,24,16,0,0,0,14,22,26,0,0,0,0,0,18,-73,-36,-47,-45,-45,0,0,-9,-27,-16,-75,0,0,0,0,0,-26,-22,-31,-24,-24,31,31,31,31,33,33,28,0,8,0,0,0,0,0,0,0,0,-38,-28,-29,-8,-8,-2,-17,0,0,0,0,0,0,0,0,0,0,0,0]} 1. d4 {[%emt 0:00:00]} Nf6 {[%emt 0:00:00]} 2. c4 {[%emt 0:00:00]} g6 {[%emt 0:00:00]} 3. Nc3 {[%emt 0:00:00]} Bg7 {[%emt 0:00:00]} 4. e4 {[%emt 0:00:00]} d6 {[%emt 0:00:00]} 5. Be2 {[%emt 0:00:00]} O-O {[%emt 0:00:00]} 6. Be3 {[%emt 0:00:00]} Nc6 {[%emt 0:00:00]} 7. Nf3 {[%emt 0:00:00] E73: King's Indian: Averbakh Variation without 6...c5.} Ng4 $1 {[%emt 0:00:00][%mdl 4] is currently scoring better than 7...e5.} 8. Bg5 {[%emt 0:00:00]} h6 {[%emt 0:00:00]} 9. Bh4 {[%emt 0:00:00]} g5 {[%emt 0:00:00]} 10. Bg3 {[%emt 0:01:58] Black must now prevent d5.} e5 {[%emt 0:00:00][%cal Re5d4]} 11. dxe5 {[%emt 0:01:20]} Ngxe5 {[%emt 0:00:00]} 12. h4 {[%emt 0:01:54]} Be6 {[%emt 0:02:41]} 13. hxg5 {[%emt 0:01:52]} hxg5 {[%emt 0:00:26] [#]} 14. Nxe5 $146 {[%emt 0:17:04]} ({Predecessor:} 14. Qd2 Nxc4 15. Bxc4 Bxc4 {½-½ (15) Galperin,P (2461)-Shevchenko,K (2592) Kremenchuk 2020}) 14... dxe5 {[%emt 0:07:12]} 15. Nd5 {[%emt 0:18:44]} Nd4 {[%emt 0:03:54]} 16. Ne3 {[%emt 0:04:37]} c6 {[%emt 0:01:36]} 17. Bd3 {[%emt 0:01:14]} (17. Bg4 $11 {keeps the balance.}) 17... Qe7 {[%emt 0:06:20]} 18. Qh5 {[%emt 0:03:05][%csl Gh1][%cal Rh5h7] [#]} Rfd8 {[%emt 0:00:57]} 19. O-O-O {[%emt 0:05:27]} b5 {[%emt 0:05:08] aiming for ...bxc4.} 20. Kb1 $1 {[%emt 0:03:37]} ({Don't blunder} 20. Nf5 $2 Bxf5 21. exf5 e4 22. Qh7+ Kf8 $19) 20... Rdb8 {[%emt 0:11:42] ...bxc4 is the strong threat.} 21. c5 {[%emt 0:05:07]} f6 {[%emt 0:06:00]} 22. Qg6 {[%emt 0:02:14]} (22. f3 $11 {remains equal.}) 22... Qf7 {[%emt 0:02:45]} ({Black should play} 22... Kf8 $17) 23. Qxf7+ $1 $11 {[%emt 0:01:05]} Kxf7 {[%emt 0:00:20]} 24. f3 {[%emt 0:04:06]} Rh8 {[%emt 0:03:53]} 25. Bf2 {[%emt 0:01:25]} Rxh1 {[%emt 0:01:12]} 26. Rxh1 {[%emt 0:00:02]} Rd8 {[%emt 0:00:28]} 27. Rd1 $1 {[%emt 0:01:59]} f5 {[%emt 0:12:19]} (27... a5 $11) 28. exf5 $14 {[%emt 0:06:40]} Nxf5 {[%emt 0:00:10]} 29. Be4 {[%emt 0:00:49]} Rxd1+ {[%emt 0:01:13]} 30. Nxd1 {[%emt 0:00:01]} Ne7 {[%emt 0:01:01]} 31. Kc2 {[%emt 0:01:05]} g4 {[%emt 0:01:09]} (31... Bxa2 $2 32. b3 $18) 32. fxg4 {[%emt 0:00:16]} Bxg4 {[%emt 0:00:24]} 33. Ne3 {[%emt 0:00:27]} Be6 {[%emt 0:01:49]} 34. b3 {[%emt 0:03:18]} Bh6 {[%emt 0:00:53]} 35. Bf3 {[%emt 0:00:50]} Nd5 {[%emt 0:07:38]} 36. Kd2 {[%emt 0:00:55]} a5 {[%emt 0:07:50]} 37. a3 {[%emt 0:00:31]} b4 {[%emt 0:02:02]} 38. axb4 {[%emt 0:00:17] The position is equal.} axb4 {[%emt 0:00:07]} 39. g3 {[%emt 0:01:37]} Nxe3 {[%emt 0:01:18]} (39... Nc3 {keeps more tension.} 40. Bxc6 Bxb3 41. Kd3 Bf8) 40. Bxe3 {[%emt 0:00:03]} Bxe3+ {[%emt 0:00:02]} 41. Kxe3 {[%emt 0:15:10]} Bxb3 {[%emt 0:15:07]} 42. Bxc6 $11 {[%emt 0:00:03] KB-KB} Ke6 {[%emt 0:01:17]} 43. g4 {[%emt 0:01:40]} Bd1 {[%emt 0:00:45]} 44. g5 {[%emt 0:00:09]} Kf5 {[%emt 0:01:04]} 45. Bd5 {[%emt 0:00:00] Weighted Error Value: White=0.11 (very precise) /Black=0.10 (very precise)} 1/2-1/2

[Event "GER-ch Youth-U18 2022"]
[Site "Willingen"]
[Date "2022.06.08"]
[Round "6.6"]
[White "Jeschke, Jan"]
[Black "Colbow, Collin"]
[Result "1/2-1/2"]
[ECO "B21"]
[WhiteElo "2130"]
[BlackElo "2360"]
[Annotator "TA"]
[PlyCount "63"]
[EventDate "2022.06.05"]
[EventType "swiss"]
[EventRounds "9"]
[EventCountry "GER"]
[SourceTitle "playchess.com"]
[Source "ChessBase"]
[SourceQuality "1"]
[TimeControl "40/4500+30:900+30"]

{[%evp 14,63,-41,-48,-36,-54,-42,-24,-42,-77,-80,-93,-83,-96,-63,-111,-98,-129,-87,-99,41,9,8,9,8,0,14,14,16,10,114,124,108,88,132,132,127,126,137,130,114,104,98,75,54,67,75,60,58,47,52,0]} 1. e4 {[%emt 0:00:00]} c5 {[%emt 0:00:00]} 2. d4 {[%emt 0:00:00]} cxd4 {[%emt 0:00:00]} 3. c3 {[%emt 0:00:00]} dxc3 {[%emt 0:00:00]} 4. Nxc3 {[%emt 0:00:00]} e6 {[%emt 0:00:00]} 5. Nf3 {[%emt 0:00:00]} a6 {[%emt 0:00:00]} 6. Bc4 {[%emt 0:00:00]} b5 {[%emt 0:00:00]} 7. Bb3 {[%emt 0:00:00]} Nc6 {[%emt 0:00:00]} 8. O-O {[%emt 0:00:00][%cal Oc3d5]} Na5 {[%emt 0:00:00] B21: Sicilian: 2 f4 and Morra Gambit.} 9. Re1 {[%emt 0:00:00][%cal Ob3d5]} Nxb3 {[%emt 0:00:00]} 10. Qxb3 {[%emt 0:00:00]} Bb7 {[%emt 0:00:00] Black has an edge.} 11. Bf4 {[%emt 0:00:00]} Be7 {[%emt 0:00:00][%cal Bf8e7,Be7g5,Bg5h6][%mdl 32]} 12. e5 {[%emt 0:06:35]} Bxf3 {[%emt 0:00:00]} 13. gxf3 {[%emt 0:00:05] [#]} Bg5 $146 {[%emt 0:00:00]} ({Predecessor:} 13... f5 14. exf6 Nxf6 15. Rad1 Qc8 16. Ne4 O-O 17. Rc1 Qe8 18. Bg3 Nd5 19. Red1 Rd8 {0-1 (39) Galerne,R (1879)-Scherbakov,Y ICCF email 2013}) 14. Bg3 {[%emt 0:00:59]} (14. Bxg5 $1 $15 Qxg5+ 15. Kh1) 14... h5 $17 {[%emt 0:09:20]} 15. f4 {[%emt 0:15:11]} Bh6 {[%emt 0:30:35] Strongly threatening ...h4.} 16. f5 {[%emt 0:25:16] Threatens to win with Ne4.} exf5 {[%emt 0:13:41]} (16... h4 $17 17. fxe6 dxe6) 17. Rad1 {[%emt 0:04:17] Hoping for Nd5.} (17. Nd5 $5 {[%cal Re5e6]} f4 18. Nxf4 (18. Bxf4 Bxf4 19. Nxf4 Qg5+ 20. Ng2 Ne7 $15) 18... Bxf4 19. Bxf4 $11) 17... Ne7 {[%emt 0:02:30]} 18. e6 {[%emt 0:02:03]} fxe6 {[%emt 0:00:57]} 19. Rxe6 {[%emt 0:00:19]} dxe6 {[%emt 0:03:50]} 20. Rxd8+ {[%emt 0:00:09]} Rxd8 {[%emt 0:00:10]} 21. Qxe6 {[%emt 0:00:49]} f4 {[%emt 0:02:57]} (21... b4 $1 $11 {remains equal.} 22. Ne2 Bg5) 22. Bh4 $36 {[%emt 0:00:10][%csl Gh4][%cal Re6e7][%mdl 2048] Keeping Black busy. White is more active.} g5 {[%emt 0:00:23] [#]} 23. Qf6 $1 {[%emt 0:01:54]} Rh7 {[%emt 0:06:35]} 24. Bxg5 {[%emt 0:02:38]} Bxg5 {[%emt 0:00:15]} 25. Qxg5 {[%emt 0:00:08]} f3 {[%emt 0:01:02] [#]} 26. h3 $1 {[%emt 0:04:19][%mdl 1024] White has strong compensation.} Rd6 {[%emt 0:02:31] And now ...Rg6 would win.} 27. Qf4 {[%emt 0:15:18]} Rg6+ {[%emt 0:00:18]} 28. Kf1 {[%emt 0:00:09]} Rf7 {[%emt 0:00:41]} 29. Qb8+ {[%emt 0:00:34]} Kd7 {[%emt 0:00:01]} 30. Qb7+ {[%emt 0:02:31]} Kd8 {[%emt 0:00:44]} 31. Qa8+ {[%emt 0:01:22]} Kd7 {[%emt 0:03:05]} 32. Qb7+ {[%emt 0:00:21] Weighted Error Value: White=0.11 (very precise) /Black=0.22 (precise)} (32. Qa7+ $14 Ke8 33. Ne4) 1/2-1/2